Cogmind - Beta 16 @@@ ROGUE MODE // 2025.11.02 @ 19:28:46 Player: Err. String Expected Got Nil Result: Self-destructed Performance ------------- Evolutions (4) 2000 Regions Visited (14) 2800 Robots Destroyed (87) 435 Value Destroyed (2641) 2641 Prototype IDs (19) 380 Alien Tech Used (0) 0 Bonus (1022) 1022 TOTAL SCORE: 9278 Bonus ------- High Alert Combat Kills 101 Follower Combat Kills 121 Entered Garrisons 200 Met Data Miner 300 Acquired ECA 300 Cogmind --------- Core Integrity 612/850 Matter 91/300 Energy 19/160 System Corruption 2% Temperature Cool (0) Movement Hovering (68) Location -6/Factory Parts ------- > --- POWER (1) -------- Light Fission Core > --- PROPULSION (5) --- Combat Airjet Combat Airjet Combat Airjet Combat Airjet Combat Airjet > --- UTILITY (7) ------ Advanced Heat Sink Large Storage Unit Advanced Signal Interpreter ECM Suite Improved Light Armor Plating Hacking Suite Hacking Suite > --- WEAPON (2) ------- Plasma Rifle > --- INVENTORY (15) --- Advanced Heat Sink Advanced Visual Processing Unit Improved Sensor Array Advanced Sensor Array Improved Signal Interpreter Authchip [Propulsion] High-powered Shock Rifle Proton Cannon Heavy Missile Launcher Makeshift Spear Peak State ------------ > --- POWER ------------ Angular Momentum Engine > --- PROPULSION ------- Gravmag System Combat Airjet Combat Airjet Combat Airjet Combat Airjet > --- UTILITY ---------- Advanced Heat Sink Large Storage Unit Advanced Sensor Array Advanced Signal Interpreter Hacking Suite Hacking Suite Makeshift System Shield > --- WEAPON ----------- Advanced Plasma Cannon Gauss Rifle > --- INVENTORY -------- Light Fission Core Improved Hover Unit Airjet Combat Airjet Advanced Heat Sink Advanced Visual Processing Unit Improved Sensor Array Improved Signal Interpreter ECM Suite Improved Light Armor Plating Plasma Rifle Heavy Ion Cannon Minigun Heavy Missile Launcher Makeshift Spear [Rating: 70] Favorites ----------- Power Ion Engine Engine Ion Engine Power Core Light Fission Core Propulsion Combat Airjet Treads Light Treads Leg Aluminum Leg Hover Unit Combat Airjet Utility Hacking Suite Device Seismic Detector Storage Large Storage Unit Processor Improved Signal Interpreter Hackware Hacking Suite Protection Improved Light Armor Plating Weapon Autogun Energy Gun Plasma Rifle Energy Cannon Advanced Plasma Cannon Ballistic Gun Autogun Launcher Rocket Launcher Special Weapon Mining Laser Impact Weapon Maul Build | -11 -10 -10 -10 -9 -8 -8 -7 -7 -7 -7 -7 -7 -6 -6 ------- Run | Yrd Mat Min Exi Min Mat Gar Fac Was Fac Low Low Dat Pro Fac Slots Evolved 8 | . . . . . 4 . 2 . . . . . . 2 Power . | . . . . . . . . . . . . . . . Propulsion 3 | . . . . . 2 . 1 . . . . . . . Utility 5 | . . . . . 2 . 1 . . . . . . 2 Weapon . | . . . . . . . . . . . . . . . Parts Attached 67 | 1 14 . 1 . 9 13 3 1 8 . . . 1 16 Power 7 | . 2 . . . 2 . . . 1 . . . . 2 Engine 6 | . 2 . . . 2 . . . 1 . . . . 1 Core 1 | . . . . . . . . . . . . . . 1 Reactor . | . . . . . . . . . . . . . . . Propulsion 20 | . 5 . . . 2 6 1 1 2 . . . . 3 Treads 5 | . 2 . . . 2 1 . . . . . . . . Leg 3 | . 3 . . . . . . . . . . . . . Wheel . | . . . . . . . . . . . . . . . Hover 12 | . . . . . . 5 1 1 2 . . . . 3 Flight . | . . . . . . . . . . . . . . . Utility 23 | 1 3 . . . 4 2 1 . 2 . . . 1 9 Device 10 | 1 . . . . 1 1 1 . 1 . . . . 5 Storage 3 | . 2 . . . . . . . . . . . 1 . Processor 2 | . . . . . 1 . . . . . . . . 1 Hackware 4 | . . . . . 1 . . . 1 . . . . 2 Protection 4 | . 1 . . . 1 1 . . . . . . . 1 Artifact . | . . . . . . . . . . . . . . . Weapon 17 | . 4 . 1 . 1 5 1 . 3 . . . . 2 Energy Gun 2 | . . . . . . . . . 1 . . . . 1 Energy Cannon 2 | . . . . . . . . . 2 . . . . . Ballistic Gun 9 | . 4 . 1 . . 3 1 . . . . . . . Ballistic Cannon . | . . . . . . . . . . . . . . . Launcher 2 | . . . . . . 1 . . . . . . . 1 Special Weapon 1 | . . . . . 1 . . . . . . . . . Impact Weapon 1 | . . . . . . 1 . . . . . . . . Slashing Weapon . | . . . . . . . . . . . . . . . Piercing Weapon . | . . . . . . . . . . . . . . . Special Melee Weapon . | . . . . . . . . . . . . . . . Unidentified Prototypes 1 | . . . . . . . . . 1 . . . . . Parts Lost 13 | . 1 . . . . 4 . 1 . . . . . 7 Power 2 | . 1 . . . . . . . . . . . . 1 Propulsion 4 | . . . . . . 1 . 1 . . . . . 2 Utility 2 | . . . . . . 1 . . . . . . . 1 Weapon 5 | . . . . . . 2 . . . . . . . 3 Highest Loss Streak 3 | . 1 . . . . 2 . 1 . . . . . 3 To Critical Strikes . | . . . . . . . . . . . . . . . Average Backups 12 | 6 9 12 15 14 13 14 9 14 14 14 14 15 15 14 Power 1 | 1 1 1 1 1 1 1 1 1 1 1 1 1 1 . Propulsion 2 | 4 2 3 5 4 3 2 1 1 1 1 1 1 1 1 Utility 4 | . 2 2 3 4 4 5 3 4 5 7 7 8 8 6 Weapon 4 | 1 3 5 5 5 5 5 4 7 7 4 5 5 5 4 Tool/Special . | . . . . . . . . . . . . . . . Unused Backups 43 | . 13 1 . 1 . 8 1 . 3 3 2 . 2 9 Power 5 | . 2 . . . . . . . 1 . . . 1 1 Propulsion 13 | . 4 . . 1 . 5 1 . 1 . . . . 1 Utility 13 | . 2 1 . . . 3 . . 1 1 1 . 1 3 Weapon 11 | . 5 . . . . . . . . 1 1 . . 4 Tool/Special 1 | . . . . . . . . . . 1 . . . . Average Slot Usage (%) 99 | . 99 100 100 100 98 99 99 98 98 100 100 88 100 98 Engine 9 | . 14 14 14 14 9 9 7 7 7 7 7 7 7 5 Treads 7 | . 2 28 28 28 35 15 . . . . . . . . Leg 6 | . 25 . . . . . . . . . . . . . Hover 19 | . . . . . . 20 38 36 36 38 38 38 38 32 Device 10 | . 12 14 14 14 9 6 12 15 8 7 7 7 7 12 Storage 9 | . 14 14 14 14 9 9 7 7 7 7 7 7 7 6 Processor 4 | . . . . . 6 9 7 7 7 7 7 7 7 6 Hackware 8 | . . . . . 8 9 7 7 13 15 15 15 15 19 Energy Cannon 2 | . . . . . . . . . 6 7 7 2 7 5 Ballistic Gun 16 | . 28 28 28 28 17 16 11 15 7 7 7 2 7 5 Peak Build Rating 70 | 7 10 11 11 11 23 41 49 50 54 54 54 54 55 70 Average Rating 35 | 6 9 10 11 11 20 31 45 48 50 54 54 45 54 64 On Entrance 32 | 6 7 10 11 11 11 23 40 49 44 54 54 54 54 55 Avg Prop Armor Cover (%) . | . . . . . . . . . . . . . . . Naked Turns . | . . . . . . . . . . . . . . . Heaviest Build 51 | 14 32 32 32 32 36 37 38 38 49 49 49 49 49 51 Greatest Support 80 | 20 40 40 40 40 80 80 60 60 56 56 56 56 56 60 Greatest Overweight (x) 1 | . 1 . . . . . . . . . . . . . Average Overweight (x) . | . . . . . . . . . . . . . . . Largest Inventory Capacity 15 | 8 15 15 15 15 15 15 15 15 15 15 15 15 15 15 Average Capacity 13 | 8 9 15 15 15 15 15 15 15 15 15 15 15 15 15 Most Carried 15 | 6 12 15 15 15 15 15 13 15 15 15 15 15 15 15 Average Carried 12 | 6 9 12 14 14 13 14 9 14 14 14 14 15 15 14 Final Capacity 15 | 8 15 15 15 15 15 15 15 15 15 15 15 15 15 15 Final Carried 15 | 6 11 15 15 15 15 11 13 14 15 15 15 15 15 10 Class Distribution -------------------- 57% | Scavenger-Mutant 27% | Mutant 15% | Hacker-Mutant Dominant Class ---------------- Mutant | -10/Materials Mutant | -10/Mines Mutant | -10/Exiles Mutant | -9/Mines Mutant | -8/Materials Scavenger-Mutant | -8/Garrison Scavenger-Mutant | -7/Factory Scavenger-Mutant | -7/Waste Scavenger-Mutant | -7/Factory Scavenger-Mutant | -7/Lower Caves Scavenger-Mutant | -7/Lower Caves Scavenger-Mutant | -7/Data Miner Scavenger-Mutant | -6/Proximity Caves Hacker-Mutant | -6/Factory Resources | -11 -10 -10 -10 -9 -8 -8 -7 -7 -7 -7 -7 -7 -6 -6 ----------- Run | Yrd Mat Min Exi Min Mat Gar Fac Was Fac Low Low Dat Pro Fac Matter Collected 2842 | 230 850 63 . 44 155 916 142 . 129 77 . . 30 206 Remotely . | . . . . . . . . . . . . . . . Salvage Created 3302 | 12 963 59 . 44 240 909 235 . 124 167 152 . . 397 Parts 190 | 3 73 4 . 6 9 53 10 . 8 1 1 . . 22 Haulers Intercepted 4 | . 2 . . . 1 . 1 . . . . . . . Recyclers Shooed 2 | . 1 . . . . . . . 1 . . . . . Parts Field Recycled . | . . . . . . . . . . . . . . . Retrieved Matter . | . . . . . . . . . . . . . . . Parts Self-Destructed 1 | . . . . . . . . . . 1 . . . . Prevented . | . . . . . . . . . . . . . . . Parts Restored . | . . . . . . . . . . . . . . . Kills | -11 -10 -10 -10 -9 -8 -8 -7 -7 -7 -7 -7 -7 -6 -6 ------- Run | Yrd Mat Min Exi Min Mat Gar Fac Was Fac Low Low Dat Pro Fac Combat Hostiles Destroyed 56 | . 19 1 . 3 3 17 3 . . . . . . 10 Guns 46 | . 19 1 . 3 3 15 3 . . . . . . 2 Cannons 3 | . . . . . . . . . . . . . . 3 AOE 5 | . . . . . . 2 . . . . . . . 3 Classes Destroyed 13 | 1 8 1 . . 1 2 . . . . . . . . Worker 8 | . 5 . . . . . 2 . . . . . . 1 Builder 2 | . 2 . . . . . . . . . . . . . Tunneler 3 | 1 . . . . . . . . . . . . . 2 Hauler 4 | . 2 . . . 1 . 1 . . . . . . . Recycler 2 | . 1 . . . . . . . 1 . . . . . Mechanic 2 | . . . . . 1 . 1 . . . . . . . Operator 4 | . 3 . . . . . 1 . . . . . . . Watcher 6 | . 3 . . . . . . . 2 . . . . 1 Swarmer 22 | . 9 . . 3 . 3 1 . . . . . . 6 Grunt 28 | . 10 . . . 3 12 2 . . . . . . 1 Brawler 1 | . . . . . . 1 . . . . . . . . Sentry 2 | . . 1 . . . . . . . . . . . 1 Programmer 3 | . . . . . . 1 . . . . . . . 2 Best Kill Streak 6 | 1 6 1 . 3 4 4 3 . 1 . . . . 4 Combat Bots Only 4 | . 3 1 . 3 3 4 2 . . . . . . 3 Max Kills in Single Turn 3 | 1 2 1 . 1 2 2 1 . 1 . . . . 3 Gunslinging 1 | . . . . . . 1 . . . . . . . . Exploded 2 | . . . . . . 2 . . . . . . . 2 Melee . | . . . . . . . . . . . . . . . Uniques/NPCs Destroyed . | . . . . . . . . . . . . . . . Combat | -11 -10 -10 -10 -9 -8 -8 -7 -7 -7 -7 -7 -7 -6 -6 -------- Run | Yrd Mat Min Exi Min Mat Gar Fac Was Fac Low Low Dat Pro Fac Hostile Shots Fired 390 | . 86 16 . 7 13 92 11 1 . . . . . 164 Missed 134 | . 28 6 . 1 6 23 5 . . . . . . 65 Hits 256 | . 58 10 . 6 7 69 6 1 . . . . . 99 Melee 2 | . . . . . . . . 1 . . . . . 1 Projectile 254 | . 58 10 . 6 7 69 6 . . . . . . 98 AOE 6 | . . . . . . 6 . . . . . . . . Critical Strikes 7 | . 1 . . . . 3 . 1 . . . . . 2 Part Disruptions 1 | . . . . . . . . . . . . . . 1 Damage Taken 3687 | . 587 139 . 44 127 1132 94 48 . . . . . 1516 Core 509 | . 41 28 . . 51 72 31 48 . . . . . 238 Absorbed by Shields . | . . . . . . . . . . . . . . . Regen/Repaired (Parts) 284 | . . . . . . . . . 119 . . . . 165 Core Remaining (%) 84 | 100 . . . 72 . 77 . . . . . . 88 . Volleys Fired 349 | 5 84 6 . 4 17 90 15 . 17 20 11 . 12 68 Largest 2 | 2 2 2 . 2 2 2 2 . 2 2 1 . 1 2 Hottest 140 | 40 46 46 . 46 100 46 51 . 126 126 98 . 98 140 Shots Fired 579 | 10 168 12 1 8 32 157 30 . 26 25 10 . 12 88 Gun 458 | 10 168 12 1 8 30 154 30 . 9 5 . . . 31 Cannon 114 | . . . . . . . . . 17 20 10 . 12 55 Launcher 5 | . . . . . . 3 . . . . . . . 2 Special 2 | . . . . . 2 . . . . . . . . . Kinetic 446 | 10 168 12 1 8 30 154 30 . 9 5 . . . 19 Thermal 128 | . . . . . 2 . . . 17 20 10 . 12 67 Explosive 5 | . . . . . . 3 . . . . . . . 2 Electromagnetic . | . . . . . . . . . . . . . . . Robot Hit Streak 17 | 4 6 13 . 4 8 17 7 . 8 3 6 . . 8 Robot Miss Streak 7 | 2 7 . . 1 2 4 2 . 5 4 1 . . 3 Penetration Max 1 | . . . . . . . . . . . . . . 1 Secondary Targets 10 | . 2 . . . 2 3 1 . . . . . . 2 Max Gunslinging Chain 1 | . 1 . . . 1 1 1 . . . . . . 1 Shots Hit Robots 314 | 8 87 12 . 5 24 105 23 . 6 5 6 . . 33 Core Hits 146 | 2 42 3 . 3 10 51 12 . 2 1 3 . . 17 Critical Kills 2 | . . . . . . . . . 1 . . . . 1 Critical Parts Destroyed 3 | . 1 . . . 1 . 1 . . . . . . . Critical Strikes 7 | . 1 . . . 1 . 1 . 1 . . . . 3 Burn 2 | . . . . . . . . . . . . . . 2 Meltdown 1 | . . . . . . . . . . . . . . 1 Destroy 3 | . 1 . . . 1 . . . 1 . . . . . Smash 1 | . . . . . . . 1 . . . . . . . Melee Attacks 16 | . . . . . . 10 6 . . . . . . . Impact 16 | . . . . . . 10 6 . . . . . . . Slashing . | . . . . . . . . . . . . . . . Piercing . | . . . . . . . . . . . . . . . Sneak Attacks 2 | . . . . . . . 2 . . . . . . . Combat Hostiles . | . . . . . . . . . . . . . . . Follow-up Attacks . | . . . . . . . . . . . . . . . Damage Inflicted 6300 | 81 1401 183 . 112 377 1955 536 . 155 148 201 . . 1151 Guns 4545 | 81 1384 183 . 112 377 1595 312 . 45 49 . . . 407 Cannons 917 | . . . . . . . . . 110 99 201 . . 507 Explosions 503 | . . . . . . 266 . . . . . . . 237 Melee 318 | . . . . . . 94 224 . . . . . . . Ramming 17 | . 17 . . . . . . . . . . . . . Kinetic 4392 | 81 1384 183 . 112 377 1595 312 . 45 49 . . . 254 Thermal 1070 | . . . . . . . . . 110 99 201 . . 660 Explosive 503 | . . . . . . 266 . . . . . . . 237 Electromagnetic . | . . . . . . . . . . . . . . . Impact 318 | . . . . . . 94 224 . . . . . . . Slashing . | . . . . . . . . . . . . . . . Piercing . | . . . . . . . . . . . . . . . Highest Corruption 3 | . 3 3 3 3 . . 1 1 1 1 1 1 1 2 Average Corruption 1 | . 1 3 3 3 . . 1 1 1 1 1 1 1 1 Corruption Purged . | . . . . . . . . . . . . . . . Corruption Blocked . | . . . . . . . . . . . . . . . Effects 51 | . 14 8 5 1 . . 3 . 3 3 4 . 2 8 Message Errors 9 | . 4 1 . . . . . . . . 1 . 1 2 Matter Fused 12 | . 2 2 1 . . . . . 3 . . . 1 3 Heat Flow Errors 5 | . 3 1 . . . . . . . 1 . . . . Energy Discharges 14 | . 2 3 2 1 . . 1 . . 2 . . . 3 Parts Fused 1 | . . . . . . . 1 . . . . . . . Data Loss (minor) 7 | . 3 . 1 . . . 1 . . . 2 . . . Data Loss (major) 1 | . . 1 . . . . . . . . . . . . Misfires 1 | . . . 1 . . . . . . . . . . . Weapon Failures 1 | . . . . . . . . . . . 1 . . . Overload Shots . | . . . . . . . . . . . . . . . Overflow Damage 126 | . . . . . . 4 43 . . 60 8 . . 11 Projectiles 68 | . . . . . . . . . . 60 8 . . . Explosions 15 | . . . . . . 4 . . . . . . . 11 Melee 43 | . . . . . . . 43 . . . . . . . Knockbacks 3 | . 1 . . . . . 2 . . . . . . . Impact 3 | . 1 . . . . . 2 . . . . . . . Kinetic . | . . . . . . . . . . . . . . . Secondary . | . . . . . . . . . . . . . . . Self-Inflicted Damage . | . . . . . . . . . . . . . . . Shots . | . . . . . . . . . . . . . . . Rammed 3 | . 3 . . . . . . . . . . . . . Targets Rammed 3 | . 3 . . . . . . . . . . . . . Kicked . | . . . . . . . . . . . . . . . Crushed . | . . . . . . . . . . . . . . . Highest Temperature 321 | . 185 91 3 12 16 19 7 . 63 283 208 . 321 168 Average Temperature 58 | . 30 26 3 6 8 10 5 . 20 121 86 . 124 55 Received Heat Transfer 1219 | . 168 54 . . 72 459 27 . . . . . . 439 Effects 2 | . . . . . . . . . . 2 . . . . Interference 2 | . . . . . . . . . . 2 . . . . Siege Activations . | . . . . . . . . . . . . . . . Martial Activations . | . . . . . . . . . . . . . . . Shielding Activations . | . . . . . . . . . . . . . . . Robots Disrupted . | . . . . . . . . . . . . . . . Combat Hostiles . | . . . . . . . . . . . . . . . Robots Corrupted . | . . . . . . . . . . . . . . . Combat Hostiles . | . . . . . . . . . . . . . . . Parts Fried 2 | . . . . . . . 2 . . . . . . . Impact Corruptions 2 | . . . . . . . 2 . . . . . . . Robots Melted 2 | . . . . . . . . . . . . . . 2 Combat Hostiles 2 | . . . . . . . . . . . . . . 2 Parts Melted 6 | . . . . . 1 . . . . . . . . 5 Heat Transferred 1870 | . . . . . . . . . 148 150 300 . . 1272 Parts Sabotaged 3 | . . . . . . . . . . . . . . 3 Parts Stolen . | . . . . . . . . . . . . . . . Parts Stripped . | . . . . . . . . . . . . . . . Power Chain Reactions . | . . . . . . . . . . . . . . . Alert | -11 -10 -10 -10 -9 -8 -8 -7 -7 -7 -7 -7 -7 -6 -6 ------- Run | Yrd Mat Min Exi Min Mat Gar Fac Was Fac Low Low Dat Pro Fac Maximum Alert Level 2 | . 1 . . . . 2 1 . . . . . . . Low Security (%) 79 | 100 95 100 . 100 100 17 29 100 100 . . . . 100 Level 1 6 | . 4 . . . . 7 70 . . . . . . . Level 2 13 | . . . . . . 74 . . . . . . . . Level 3 . | . . . . . . . . . . . . . . . Level 4 . | . . . . . . . . . . . . . . . Level 5 . | . . . . . . . . . . . . . . . High Security . | . . . . . . . . . . . . . . . Max Security . | . . . . . . . . . . . . . . . Peak Influence 667 | 5 217 33 . 81 111 667 386 63 60 . . . . 134 Initial 350 | . . 33 . . 23 44 350 63 . . . . . . Average 136 | . 95 4 . 24 24 450 234 28 10 . . . . 40 Influence Increases 2481 | 5 662 20 . 81 143 703 222 . 135 55 5 . . 450 Destroy 0b10 Robot/C 1260 | . 380 20 . 60 80 420 100 . . . . . . 200 Destroy 0b10 Robot/NC 195 | 5 80 . . . 10 25 25 . 15 10 5 . . 20 Destroy Leader 230 | . 100 . . 10 22 30 12 . 4 . . . . 52 Allied During Kill 61 | . . . . 11 16 17 17 . . . . . . . Successful Hack 133 | . 12 . . . . 6 34 . 37 . . . . 44 Disable Machine 150 | . 45 . . . 15 . . . 30 . . . . 60 Anti-Garrison Action 100 | . . . . . . 100 . . . . . . . . Destroy Structure 112 | . . . . . . 45 4 . 4 . . . . 59 Partial Spotted 15 | . . . . . . . 15 . . . . . . . Lose Combat Pursuer 225 | . 45 . . . . 60 15 . 45 45 . . . 15 Influence Decreases 2401 | 5 575 107 . 20 136 104 707 182 135 53 7 . . 370 Entered New Map 554 | . . 54 . . 38 24 317 119 . . 2 . . . Time Decay 1397 | 5 565 53 . 20 78 . 180 33 135 53 5 . . 270 Lost Part 130 | . 10 . . . . 40 . 10 . . . . . 70 Lost Ally 140 | . . . . . 20 40 60 20 . . . . . . Purge Threat 180 | . . . . . . . 150 . . . . . . 30 Squads Dispatched 18 | . 4 . . . 1 . 5 . 3 . . . . 5 Investigation 7 | . 1 . . . 1 . 2 . . . . . . 3 Extermination 2 | . . . . . . . . . . . . . . 2 Reinforcement 6 | . 3 . . . . . 3 . . . . . . . Assault 2 | . . . . . . . . . 2 . . . . . Garrison 1 | . . . . . . . . . 1 . . . . . Intercept . | . . . . . . . . . . . . . . . Searches Triggered . | . . . . . . . . . . . . . . . Data Miner Redirects 1 | . . . . . . . . . . . . . . 1 Construction Impeded 1 | . . . . . . . 1 . . . . . . . Haulers Reinforced 1 | . . . . . . . 1 . . . . . . . Active Scanning Responses . | . . . . . . . . . . . . . . . Cargo Convoy Interrupts 1 | . . . . . . . . . . . . . . 1 Stealth | -11 -10 -10 -10 -9 -8 -8 -7 -7 -7 -7 -7 -7 -6 -6 --------- Run | Yrd Mat Min Exi Min Mat Gar Fac Was Fac Low Low Dat Pro Fac Distress Signals 6 | . 2 . . . . . 1 . . . . . . 3 Communications Jammed . | . . . . . . . . . . . . . . . Distress Signals . | . . . . . . . . . . . . . . . Times Spotted 151 | . 29 2 . 3 4 25 15 6 7 1 . . . 59 Peak Tracking Total 15 | . 5 2 . 3 3 5 7 4 4 3 . . . 15 Tactical Retreats 26 | . 3 . . . . 2 2 1 2 2 . . . 14 ECM-based Alert Blocks 53 | . . . . . . . 7 . . . . . . 46 Traps | -11 -10 -10 -10 -9 -8 -8 -7 -7 -7 -7 -7 -7 -6 -6 ------- Run | Yrd Mat Min Exi Min Mat Gar Fac Was Fac Low Low Dat Pro Fac Traps Triggered 11 | . 5 . . . 1 2 3 . . . . . . . Indirectly . | . . . . . . . . . . . . . . . Trap Hack Attempts . | . . . . . . . . . . . . . . . Triggered . | . . . . . . . . . . . . . . . Disarmed . | . . . . . . . . . . . . . . . Reprogrammed . | . . . . . . . . . . . . . . . Reused . | . . . . . . . . . . . . . . . Traps Extracted . | . . . . . . . . . . . . . . . Installed . | . . . . . . . . . . . . . . . Triggered . | . . . . . . . . . . . . . . . Machines | -11 -10 -10 -10 -9 -8 -8 -7 -7 -7 -7 -7 -7 -6 -6 ---------- Run | Yrd Mat Min Exi Min Mat Gar Fac Was Fac Low Low Dat Pro Fac Machines Disabled 12 | . 3 . . . 1 2 . . 2 . . . . 4 Max in Single Turn 2 | . 1 . . . 1 1 . . 1 . . . . 2 Garrison Access 4 | . . . . . . . 1 . 1 . . . . 2 Garrison Relay 2 | . . . . . . 2 . . . . . . . . Machines Repaired . | . . . . . . . . . . . . . . . Machines Dismantled . | . . . . . . . . . . . . . . . Machines Sabotaged . | . . . . . . . . . . . . . . . Overloaded Fab Kills . | . . . . . . . . . . . . . . . Hacking | -11 -10 -10 -10 -9 -8 -8 -7 -7 -7 -7 -7 -7 -6 -6 --------- Run | Yrd Mat Min Exi Min Mat Gar Fac Was Fac Low Low Dat Pro Fac Machines Accessed 48 | . 6 . 1 . 2 3 7 . 7 3 1 3 . 15 Terminals 24 | . 6 . . . . 3 3 . 3 1 . . . 8 Fabricators 2 | . . . . . . . . . . . . . . 2 Repair Stations 2 | . . . . . . . . . 1 . . . . 1 Recycling Units 5 | . . . . . 1 . 1 . 2 . . . . 1 Scanalyzers 3 | . . . . . . . 2 . 1 . . . . . Garrison Access 5 | . . . . . 1 . 1 . . . . . . 3 Total Hacks 163 | . 24 . 1 . 5 4 23 . 20 6 1 18 . 61 Successful 113 | . 14 . 1 . 3 3 13 . 15 6 1 18 . 39 Failed 50 | . 10 . . . 2 1 10 . 5 . . . . 22 Catastrophic 3 | . 1 . . . . . 1 . . . . . . 1 Database Lockouts . | . . . . . . . . . . . . . . . Manual 74 | . 23 . . . 1 . 9 . 10 . . . . 31 Terminals 99 | . 24 . . . . 4 14 . 13 1 . . . 43 Fabricators 7 | . . . . . . . . . . . . . . 7 Repair Stations 6 | . . . . . . . . . 2 . . . . 4 Recycling Units 10 | . . . . . 4 . 1 . 3 . . . . 2 Scanalyzers 8 | . . . . . . . 6 . 2 . . . . . Garrison Access 8 | . . . . . 1 . 2 . . . . . . 5 Terminal Hacks 58 | . 4 . 1 . . 3 4 . 6 6 1 18 . 15 Record 8 | . . . 1 . . . . . . 5 . 2 . . Part Schematic 10 | . . . . . . . . . . . . 9 . 1 Robot Schematic 4 | . . . . . . . . . . . . 4 . . Robot Analysis 3 | . 1 . . . . . . . . . . . . 2 Prototype ID Bank 6 | . 1 . . . . . 1 . 1 . . 3 . . Open Door 3 | . . . . . . 1 . . . 1 1 . . . Emergency Access Points 2 | . . . . . . 1 . . 1 . . . . . Terminal Index 4 | . 1 . . . . . 1 . 1 . . . . 1 Fabricator Index 1 | . . . . . . . . . . . . . . 1 Repair Station Index 2 | . . . . . . . . . 1 . . . . 1 Alert Level 2 | . . . . . . . . . 1 . . . . 1 Unreport Threat 2 | . . . . . . . 1 . . . . . . 1 Locate Traps 2 | . . . . . . . . . . . . . . 2 Maintenance Status 4 | . 1 . . . . . 1 . 1 . . . . 1 Patrol Status 1 | . . . . . . . . . . . . . . 1 Transport Status 1 | . . . . . . . . . . . . . . 1 Hauler Manifests 1 | . . . . . . . . . . . . . . 1 Registered Components 1 | . . . . . . . . . . . . . . 1 Patrol Navigation 1 | . . . . . . 1 . . . . . . . . Fabricator Hacks 5 | . . . . . . . . . . . . . . 5 Network Status 1 | . . . . . . . . . . . . . . 1 Load Schematic 3 | . . . . . . . . . . . . . . 3 Build 1 | . . . . . . . . . . . . . . 1 Repair Station Hacks 6 | . . . . . . . . . 2 . . . . 4 Scan Component 3 | . . . . . . . . . 1 . . . . 2 Repair 3 | . . . . . . . . . 1 . . . . 2 Recycling Unit Hacks 1 | . . . . . 1 . . . . . . . . . Retrieve Components 1 | . . . . . 1 . . . . . . . . . Scanalyzer 4 | . . . . . . . 2 . 2 . . . . . Insert Component 3 | . . . . . . . 2 . 1 . . . . . Analyze 1 | . . . . . . . . . 1 . . . . . Garrison Access Hacks 4 | . . . . . 1 . 1 . . . . . . 2 Unlock Access 1 | . . . . . 1 . . . . . . . . . Seal Access 3 | . . . . . . . 1 . . . . . . 2 Unauthorized Hacks 35 | . 10 . . . 1 . 6 . 5 . . . . 13 Terminals 30 | . 10 . . . . . 5 . 4 . . . . 11 Track 4 | . 1 . . . . . . . . . . . . 3 Assimilate 1 | . 1 . . . . . . . . . . . . . Botnet 8 | . 2 . . . . . 2 . 2 . . . . 2 Operators 4 | . 1 . . . . . 1 . 1 . . . . 1 Skim 13 | . 5 . . . . . 2 . 1 . . . . 5 Fabricators 2 | . . . . . . . . . . . . . . 2 Recompile 2 | . . . . . . . . . . . . . . 2 Repair Stations . | . . . . . . . . . . . . . . . Recycling Units 3 | . . . . . 1 . 1 . 1 . . . . . Recyclers 3 | . . . . . 1 . 1 . 1 . . . . . Scanalyzers . | . . . . . . . . . . . . . . . Garrison Access . | . . . . . . . . . . . . . . . Data Cores Recovered . | . . . . . . . . . . . . . . . Used . | . . . . . . . . . . . . . . . Hacking Detections 33 | . 5 . . . 1 3 6 . 7 . . . . 11 Full Trace Events 3 | . . . . . . . 2 . . . . . . 1 Feedback Events . | . . . . . . . . . . . . . . . Feedback Blocked . | . . . . . . . . . . . . . . . Robot Schematics Acquired 4 | . . . . . . . . . . . . 4 . . Robots Built . | . . . . . . . . . . . . . . . Authchips . | . . . . . . . . . . . . . . . Time . | . . . . . . . . . . . . . . . Total Robot Build Rating . | . . . . . . . . . . . . . . . Part Schematics Acquired 11 | . . . . . . . . . 1 . . 9 . 1 Parts Built 2 | . . . . . . . . . . . . . . 2 Authchips 1 | . . . . . . . . . . . . . . 1 Time 47 | . . . . . . . . . . . . . . 47 Total Part Build Rating 10 | . . . . . . . . . . . . . . 10 Part Studies Acquired . | . . . . . . . . . . . . . . . Parts Repaired 3 | . . . . . . . . . 1 . . . . 2 Time 128 | . . . . . . . . . 28 . . . . 100 Parts Recycled . | . . . . . . . . . . . . . . . Recycled Matter . | . . . . . . . . . . . . . . . Retrieved Matter . | . . . . . . . . . . . . . . . Retrieved Components 2 | . . . . . 2 . . . . . . . . . Parts Scanalyzed 2 | . . . . . . . 1 . 1 . . . . . Part Schematics Acquired 1 | . . . . . . . . . 1 . . . . . Parts Damaged 1 | . . . . . . . 1 . . . . . . . Bothacking | -11 -10 -10 -10 -9 -8 -8 -7 -7 -7 -7 -7 -7 -6 -6 ------------ Run | Yrd Mat Min Exi Min Mat Gar Fac Was Fac Low Low Dat Pro Fac Used RIF Installer . | . . . . . . . . . . . . . . . Robots Hacked . | . . . . . . . . . . . . . . . Non-combat . | . . . . . . . . . . . . . . . Combat . | . . . . . . . . . . . . . . . Robot Hacks Applied . | . . . . . . . . . . . . . . . Relay Couplers Released 12 | . . . . . . 10 . . 2 . . . . . Machine Destruction 9 | . . . . . . 7 . . 2 . . . . . Programmers 3 | . . . . . . 3 . . . . . . . . Fabnet Peak Effective % . | . . . . . . . . . . . . . . . Robots Rewired 3 | . . . . . . 3 . . . . . . . . Allies Hacked . | . . . . . . . . . . . . . . . Hacks Repelled . | . . . . . . . . . . . . . . . Allies | -11 -10 -10 -10 -9 -8 -8 -7 -7 -7 -7 -7 -7 -6 -6 -------- Run | Yrd Mat Min Exi Min Mat Gar Fac Was Fac Low Low Dat Pro Fac Total Allies 7 | . . . . 3 . 3 . 1 . . . . . . Largest Group 3 | . . . . 3 3 3 3 1 . . . . . . Highest-Rated Group 84 | . . . . 40 40 84 84 31 . . . . . . Highest-Rated Ally 39 | . . . . 16 16 39 39 31 . . . . . . Initial Warlord ECA Mod 1 | . . . . . . . 1 1 1 1 1 1 . . Total Orders . | . . . . . . . . . . . . . . . Ally Attacks 67 | . . . . . 15 28 11 13 . . . . . . Total Damage 822 | . . . . . 137 250 242 193 . . . . . . Kills 7 | . . . . . 1 4 2 . . . . . . . Allies Corrupted . | . . . . . . . . . . . . . . . Allies Melted 1 | . . . . . . . . . 1 . . . . . Intel | -11 -10 -10 -10 -9 -8 -8 -7 -7 -7 -7 -7 -7 -6 -6 ------- Run | Yrd Mat Min Exi Min Mat Gar Fac Was Fac Low Low Dat Pro Fac Active Infowar (turns) 6512 | 12 1693 388 271 101 293 278 367 98 511 496 379 57 334 1234 Sensors 3718 | . . . . . 207 47 367 98 511 496 379 57 334 1222 Seismic 2782 | 12 1693 388 271 101 86 231 . . . . . . . . ECM 650 | . . . . . . . 64 . . . . . . 586 Robot Analysis Total 3 | . 1 . . . . . . . . . . . . 2 Derelict Logs Recovered 2 | . . . . . . . . . . . 1 . 1 . Drone Launches . | . . . . . . . . . . . . . . . Drone Recoveries . | . . . . . . . . . . . . . . . Exploration | -11 -10 -10 -10 -9 -8 -8 -7 -7 -7 -7 -7 -7 -6 -6 ------------- Run | Yrd Mat Min Exi Min Mat Gar Fac Was Fac Low Low Dat Pro Fac Turns Passed 7577 | 35 1892 388 271 101 293 1082 368 98 511 509 379 57 334 1259 Spaces Moved 6096 | 17 886 226 168 49 123 692 425 133 595 654 502 85 451 1090 Core . | . . . . . . . . . . . . . . . Treads 881 | . 114 226 168 49 123 201 . . . . . . . . Legs 789 | 17 772 . . . . . . . . . . . . . Wheels . | . . . . . . . . . . . . . . . Hover 4426 | . . . . . . 491 425 133 595 654 502 85 451 1090 Flight . | . . . . . . . . . . . . . . . Fastest Speed 63 | 120 120 160 160 160 160 71 68 68 63 63 63 63 63 63 Average Speed 90 | 120 160 160 160 160 160 96 68 68 64 63 63 63 63 63 Slowest Speed 190 | 120 190 160 160 160 160 160 68 71 71 63 63 63 63 71 Overloaded Moves . | . . . . . . . . . . . . . . . Propulsion Burnouts . | . . . . . . . . . . . . . . . Robots Hopped . | . . . . . . . . . . . . . . . Potential Cave-ins . | . . . . . . . . . . . . . . . Cave-ins Triggered . | . . . . . . . . . . . . . . . Exploration Rate (%) 46 | 3 95 48 53 10 13 73 11 75 18 69 67 70 67 29 Regions Visited 14 Branch Regions 7 Pre-discovered Areas 4 | . . . 1 1 . . . . . 1 . 1 . . Known Exits Taken 6 | . . . . . 1 . . . 1 1 1 1 1 . Unknown Exits Taken 5 | 1 1 1 1 1 . . . . . . . . . . Scrap Searched 10 | . . . . . . . . . . 5 1 . 4 . Spaces Dug 41 | . . . . . . . 2 . 2 7 2 . 9 19 Terrain Destroyed 127 | . . . . . . 19 2 . 4 16 4 . 12 70 Melee 2 | . . . . . . . 2 . . . . . . . Projectile 72 | . . . . . . . . . 4 16 4 . 12 36 AOE 53 | . . . . . . 19 . . . . . . . 34 Terrain Rammed . | . . . . . . . . . . . . . . . Walls Destroyed . | . . . . . . . . . . . . . . . Machines Disabled . | . . . . . . . . . . . . . . . Actions | -11 -10 -10 -10 -9 -8 -8 -7 -7 -7 -7 -7 -7 -6 -6 --------- Run | Yrd Mat Min Exi Min Mat Gar Fac Was Fac Low Low Dat Pro Fac Total 7597 | 22 1231 243 170 67 188 950 465 139 697 728 556 88 491 1562 Wait 840 | . 206 6 . 9 30 63 6 4 50 47 38 . 23 358 Move 6083 | 16 885 225 167 48 123 690 425 132 594 653 501 84 450 1090 Hop . | . . . . . . . . . . . . . . . Pick Up 78 | . 14 5 1 3 5 12 6 2 13 4 3 . 2 8 Fast Attach 13 | 1 2 . . . . 2 . . 1 . . 2 . 5 Attach 23 | . 2 . . . 4 3 2 1 1 . . . . 10 Detach 3 | . 2 . . . . . . . 1 . . . . . Swap 68 | . 14 . 1 . 6 19 3 . 8 . . . 1 16 Drop 75 | . 19 1 1 3 3 15 2 . 12 4 3 2 3 7 Fire 349 | 5 84 6 . 4 17 90 15 . 17 20 11 . 12 68 Melee 16 | . . . . . . 10 6 . . . . . . . Ram . | . . . . . . . . . . . . . . . Kick . | . . . . . . . . . . . . . . . Crush 3 | . 3 . . . . . . . . . . . . . Escape Stasis 9 | . . . . . . 9 . . . . . . . . Rewire 37 | . . . . . . 37 . . . . . . . . Trap . | . . . . . . . . . . . . . . . Miscellaneous . | . . . . . . . . . . . . . . . Route ------- -11/Scrapyard -10/Materials (discovered 4 exits: [*Mat x3] / [*Min]) -10/Mines (discovered 3 exits: [*Mat x2] / *Exi) -10/Exiles -9/Mines -8/Materials -8/Garrison (discovered 3 exits: *Fac x3) -7/Factory -7/Waste -7/Factory (discovered 3 exits: *Fac x2 / *Low) -7/Lower Caves -7/Lower Caves -7/Data Miner -6/Proximity Caves -6/Factory History --------- Turn | Location | Event 1 | -11/Scrapyard | Discovered new exit (range 3) 36 | -11/Scrapyard | Entered Materials 317 | -10/Materials | Build established: Mutant 489 | -10/Materials | Discovered new exit (range 15) 723 | -10/Materials | Discovered new exit (range 10) 1187 | -10/Materials | Build established: Scavenger-Mutant 1683 | -10/Materials | Discovered new exit (range 6) 1899 | -10/Materials | Discovered new exit (range 16) 1928 | -10/Materials | Entered Mines 1931 | -10/Mines | Assembled infested the area 1948 | -10/Mines | Received a Rocket Launcher from a helpful Derelict 1996 | -10/Mines | Build established: Mutant 2063 | -10/Mines | Discovered new exit (range 7) 2122 | -10/Mines | Discovered new exit (range 12) 2308 | -10/Mines | Deemed a non-threat by the Exiles lab entrance 2309 | -10/Mines | Discovered new exit (range 5) 2316 | -10/Mines | Entered Exiles 2355 | -10/Exiles | Met 8R-AWN 2384 | -10/Exiles | Met EX-HEX 2465 | -10/Exiles | Met EX-DEC 2494 | -10/Exiles | Learned location of Zion (-6) 2574 | -10/Exiles | Discovered new exit (range 10) 2587 | -10/Exiles | Entered Mines 2591 | -9/Mines | Assisted by bots powering up and referring to "LRC-V3" 2622 | -9/Mines | Learned location of Storage (-7) 2660 | -9/Mines | Discovered new exit (range 4) 2688 | -9/Mines | Entered Materials 2688 | -8/Materials | Accompanied by 3 allies 2688 | -8/Materials | Evolved 4 slots: Propulsion x2, Utility x2 2978 | -8/Materials | Identified exit to Garrison 2981 | -8/Materials | Entered Garrison 2981 | -8/Garrison | Accompanied by 2 allies 3033 | -8/Garrison | Triggered checkpoint 3090 | -8/Garrison | Garrison Relay disabled 3186 | -8/Garrison | Triggered checkpoint 3196 | -8/Garrison | Triggered checkpoint 3329 | -8/Garrison | Build established: Scavenger-Mutant 3390 | -8/Garrison | Discovered new exit (range 10) 3468 | -8/Garrison | Identified exit to Factory 3544 | -8/Garrison | Attempted to access garrison exit controls, blocked by remote lockdown 3700 | -8/Garrison | Discovered exit to Factory (range 14) 3749 | -8/Garrison | Triggered checkpoint 3855 | -8/Garrison | Garrison Relay disabled 3888 | -8/Garrison | Triggered checkpoint 3944 | -8/Garrison | Discovered exit to Factory (range 12) 4063 | -8/Garrison | Entered Factory 4063 | -7/Factory | Accompanied by 3 allies 4063 | -7/Factory | Evolved 2 slots: Propulsion x1, Utility x1 4202 | -7/Factory | Lost 3 allies 4431 | -7/Factory | Sucked down chute 4431 | -7/Factory | Entered Waste 4432 | -7/Waste | Met a frightened Derelict 4435 | -7/Waste | Spotted C-40 Crusher 4439 | -7/Waste | Spotted C-40 Crusher 4441 | -7/Waste | Spotted C-40 Crusher 4464 | -7/Waste | Spotted C-40 Crusher 4492 | -7/Waste | Spotted C-40 Crusher 4503 | -7/Waste | Crushed by Compactor (1 part destroyed, 1 dropped) 4518 | -7/Waste | Discovered new exit (range 11) 4518 | -7/Waste | Spotted C-40 Crusher 4529 | -7/Waste | Identified exit to Factory 4529 | -7/Waste | Entered Factory 4561 | -7/Factory | Discovered new exit (range 15) 4570 | -7/Factory | Identified exit to Factory 4783 | -7/Factory | Discovered exit to Factory (range 7) 4960 | -7/Factory | Repaired Adv. Plasma Cannon 4972 | -7/Factory | Noticed a derelict Sapper rigging charges 4977 | -7/Factory | Garrison activated, responded to threat 5037 | -7/Factory | Discovered new exit (range 5) 5039 | -7/Factory | Identified exit to Lower Caves 5040 | -7/Factory | Entered Lower Caves 5047 | -7/Lower Caves | Encountered a Warlord checkpoint 5133 | -7/Lower Caves | Met a Warlord Commander 5134 | -7/Lower Caves | Learned location of Warlord (-4) 5135 | -7/Lower Caves | Warlord Commander delivered Encrypted Comm Array 5138 | -7/Lower Caves | Found Encrypted Comm Array 5297 | -7/Lower Caves | Learned Armory stockpile data 5297 | -7/Lower Caves | Learned Extension security intel 5297 | -7/Lower Caves | Learned Research terminal intel 5517 | -7/Lower Caves | Discovered new exit (range 11) 5525 | -7/Lower Caves | Identified exit to Lower Caves 5549 | -7/Lower Caves | Entered another Lower Caves area 5673 | -7/Lower Caves | Encountered a Warlord checkpoint 5889 | -7/Lower Caves | Learned Factory emergency access door positions 5924 | -7/Lower Caves | Discovered new exit (range 5) 5927 | -7/Lower Caves | Identified exit to Data Miner 5928 | -7/Lower Caves | Entered Data Miner 5928 | -7/Data Miner | Discovered new exit (range 6) 5931 | -7/Data Miner | Identified exit to Proximity Caves 5941 | -7/Data Miner | Met Data Miner 5955 | -7/Data Miner | Learned location of Section 7 (-3) 5955 | -7/Data Miner | Acquired the access code to Warlord's prototype stash 5965 | -7/Data Miner | Received God Mode back door access code from Data Miner 5985 | -7/Data Miner | Entered Proximity Caves 6319 | -6/Proximity Caves | Entered Factory 6319 | -6/Factory | Evolved 2 slots: Utility x2 6392 | -6/Factory | Repaired Cmb. Airjet 6443 | -6/Factory | Repaired Cmb. Airjet 6623 | -6/Factory | Build established: Hacker-Mutant 6927 | -6/Factory | Learned location of 1 exit from Lower Caves 6990 | -6/Factory | Learned Extension stockpile data 7044 | -6/Factory | Learned location of 2 exits from Archives 7090 | -6/Factory | Learned location of 1 exit from Proximity Caves 7111 | -6/Factory | Fabricated Cmb. Airjet (x2) 7248 | -6/Factory | Learned Hub_04(d) trap positions 7359 | -6/Factory | Spotted B-75 Beast 7415 | -6/Factory | Cargo convoy interrupted 7475 | -6/Factory | Incoming investigation squad redirected 7578 | -6/Factory | Self-destructed Last Messages --------------- 1x Tesla Bomb Trap Map updated. 07522_ System corrupted: Matter fused (-9). 07523_ W-25 Informer sends out distress signal. 07527_ Door malfunctions. 07530_ Angular Momentum Engine destroyed. 07538_ Connecting with Garrison Access... >>Seal Access door sealed. 07539_ P-60 Hacker suffers critical hit (Meltdown). 07539_ Shock Rifle melted. 07541_ Acquired 45 matter. 07555_ R-10 Processor collects Target Analyzer. 07557_ Critical hit (Burn: +50). 07558_ Cmb. Airjet destroyed. 07563_ G-50 Soldier destroyed. 07570_ U-05 Engineer builds a Door. 07571_ Hvy. Ion Cannon destroyed. 07572_ R-10 Processor collects Hvy. Laser. Map ----- +----------------------------------------------------+ | ?????????????????????????????????????????????????? | | ?????????????????????????????????????????????????? | | ?????????????????????????????????????????????????? | | ?????????????????????????????????????????????????? | | ?????????????????????????????????????????????????? | | ?????????????????????????????????????????????????? | | ?????????????????????????????????????????????????? | | ??????????????????????H??????????????????????????? | | ????????+???????????? ?????????????????????????? | | ??????????????????? ??????????????????????###? | | ??????????????????# ?????????????????????? ## | | ??????????????????# ??????????????????????" # | | ??????????????????# ??????????????????#??"" # | | ??????????????????# ??????????????????# """ # | | ??????????????????+ #?????????????????# # | | ??????????????????# /?????????????????# """ # | | ??????????????????# #?????????????????# """ ## | | ??????????????????# ###########???????# """ ## | | ??????????????????# # #???????# ## | | ??????????????????# # #???????# ## | | ??????????????????# # R #???????# ## | | ??????????????????# #g""" [#???????# # | | ??????????????????# /g""" "" #???????####+## | | ??????????????????# #g""" G" #??????????# | | ??????????????????# # "" #??????????#### | | ??????????????????# #@= #?????????????# | | """ #?# """ """ # ###########?????????????## | | """ #?# # #????????????????????????? | | #?# # #????????????????????????? | | #?# + ##############???????????? | | #######?# #^ # #???????????? | | ????????######+#### #"" #???????????? | | ####??????# ## #"" ############# | | #??????# ## k#"T """ # | | #??????# ## #"" """ # | | #??????# ## #"" """ # | | #??????# ## + # | | #??????# ##k # """ """ # | | #??????#"""" ## # """ """ # | | ########"""" ## # """ """ # | | #"""" ## # ??# | | #"""" ## # ??# | | """ ""#"""" ## ###########??# ! | | """ ! ""#"""" ## #????????????# | | """ T"#"""" ## #????????????# = | | """ ""# ## ########################## | | ""###+#####[ #??????? | | """ """ #??????? | | """ """ #??????# | | """ """ """ ""% """ """ """ #??????# | +----------------------------------------------------+ Best States ------------- Heat Dissipation 56 Energy Generation 18 Energy Capacity 300 Matter Stores 300 Matter Capacity 300 Sight Range 16 Robot Scan Range 16 Terrain Scan Density 10 ECM Strength 1 Armor Coverage 150 Evasion (%) 55 Recoil Reduction 4 Offensive Hacking 20 Defensive Hacking 11 Authchip Count 1 Item Schematics ----------------- Cmb. Airjet | -7/Factory | Scanalyzed Combat Drone Bay | -7/Data Miner | Free Lgt. Regenerative Plating | -7/Data Miner | Free Cld. Cesium-ion Thruster | -7/Data Miner | Free Exp. Propulsion Shielding | -7/Data Miner | Free Imp. Heavy Laser | -7/Data Miner | Free Antigrav System | -7/Data Miner | Free Imp. Transmission Jammer | -7/Data Miner | Free Lrn. Proton Cannon | -7/Data Miner | Free Disruptor Cannon | -7/Data Miner | Free Hyp. Coil Gun | -6/Factory | Hacked Robot Schematics ------------------ G-47 Trooper | -7/Data Miner | Free A-15 Conveyor | -7/Data Miner | Free R-10 Processor | -7/Data Miner | Free O-24 Administrator | -7/Data Miner | Free Fabricated ------------ Cmb. Airjet | x2 | -6/Factory | Authchip Repaired ---------- Adv. Plasma Cannon | 15% | -7/Factory Cmb. Airjet | 16% | -6/Factory Cmb. Airjet | 56% | -6/Factory Studied --------- None Alien Tech Used ----------------- None Achievements -------------- Jackpot Challenges ------------ None Game ------ Seed DisruptorVampiricCapacitor Manual? 0 Play Time 01:14:46 Cumulative 157.2 hours Start 2025.11.02 @ 18:14:03 End 2025.11.02 @ 19:28:46 Sessions 1 Manual Loads 0 Difficulty Rogue Special Mode None Game No. 118 Rogue 118 Adventurer 0 Explorer 0 Win Type - Total 4 Types 3/0/1/0/0/0/0/0/0/0 Lore% 57 Gallery% 52 Achievement% 36 Wizard Run 0 Options --------- Layout 2 ASCII 0 Keyboard 1 Movement Numpad Keybinds 0 Fullscreen 2 Font 32/SmallcapsGlow Map View 50x44 Zoom Use 0% Tactical HUD 1 Map Filters NONE Filters NONE Steam 1 RUN: e52e8b3c-d00e-4824-8f3b-bda4d3e98e34